fUSD/lending_fUSD_20241224
["ID","MTS","AMOUNT","RATE_DAILY","PERIOD"]
[346510966,1735017069977,-500.0,0.0001452,2]
[346510967,1735017069987,-500.0,0.0001452,2]
[346510968,1735017069998,-1568.06,0.0001452,2]
[346510969,1735017070008,-500.0,0.0001452,2]
[346510970,1735017070018,-790.82,0.0001452,2]
[346510971,1735017070028,-500.0,0.0001452,2]
[346510972,1735017070038,-500.0,0.0001452,2]
[346510973,1735017070047,-500.0,0.0001452,2]
[346510974,1735017070057,-500.0,0.0001452,2]
[346510975,1735017070066,-500.0,0.0001452,2]
[346510976,1735017070075,-500.0,0.0001452,2]
[346510977,1735017070085,-500.0,0.0001452,2]
[346510978,1735017070095,-500.0,0.0001452,2]
[346510979,1735017070104,-824.42,0.0001452,2]
[346510980,1735017070114,-487.88945048,0.0001452,2]
[346510981,1735017070123,-1098.82,0.0001452,2]
[346510982,1735017070133,-500.0,0.0001452,2]
[346510983,1735017070143,-500.0,0.0001452,2]
[346510984,1735017070152,-500.0,0.0001452,2]
[346510985,1735017070162,-745.24,0.0001452,2]
[346510986,1735017070172,-500.0,0.0001452,2]
[346510987,1735017070182,-500.0,0.0001452,2]
[346510988,1735017070191,-500.0,0.0001452,2]
[346510989,1735017070201,-500.0,0.0001452,2]
[346510990,1735017070210,-500.0,0.0001452,2]
[346510991,1735017070220,-500.0,0.0001452,2]
[346510992,1735017070230,-510.66675344,0.0001452,2]
[346510993,1735017070239,-1414.48,0.0001452,2]
[346510994,1735017070249,-500.0,0.0001452,2]
[346510995,1735017070258,-563.20379594,0.0001452,2]
[346510996,1735017070268,-500.0,0.0001452,2]
[346510997,1735017070278,-500.0,0.0001452,2]
[346510998,1735017070288,-1084.53,0.0001452,2]
[346510999,1735017070297,-500.0,0.0001452,2]
[346511000,1735017070307,-666.79,0.0001452,2]
[346511001,1735017070316,-500.0,0.0001452,2]
[346511002,1735017070326,-500.0,0.0001452,2]
[346511003,1735017070335,-1900.45,0.0001452,2]
[346511004,1735017070345,-1378.72,0.0001452,2]
[346511005,1735017070354,-767.26,0.0001452,2]
[346511006,1735017070364,-3033.38,0.0001452,2]
[346511007,1735017070374,-500.0,0.0001452,2]
[346511008,1735017070383,-2055.63,0.0001452,2]
[346511009,1735017070393,-500.0,0.0001452,2]
[346511010,1735017070403,-500.0,0.0001452,2]
[346511011,1735017070412,-1125.23,0.0001452,2]
[346511012,1735017070422,-500.0,0.0001452,2]
[346511013,1735017070431,-500.0,0.0001452,2]
[346511014,1735017070441,-500.0,0.0001452,2]
[346511015,1735017070450,-500.0,0.0001452,2]
[346511016,1735017070460,-500.0,0.0001452,2]
[346511017,1735017070471,-500.0,0.0001452,2]
[346511018,1735017070481,-500.0,0.0001452,2]
[346511019,1735017070492,-500.0,0.0001452,2]
[346511020,1735017070502,-500.0,0.0001452,2]
[346511021,1735017070512,-612.69,0.0001452,2]
[346511022,1735017070522,-500.0,0.0001452,2]
[346511023,1735017070532,-500.0,0.0001452,2]
[346511024,1735017070541,-500.0,0.0001452,2]
[346511025,1735017070553,-500.0,0.0001452,2]
[346511026,1735017070562,-409.95776163,0.0001452,2]
[346511027,1735017070571,-500.0,0.0001452,2]
[346511028,1735017070581,-500.0,0.0001452,2]
[346511029,1735017070592,-500.0,0.0001452,2]
[346511030,1735017070602,-516.38,0.0001452,2]
[346511031,1735017070612,-500.0,0.0001452,2]
[346511032,1735017070621,-500.0,0.0001452,2]
[346511033,1735017070630,-500.0,0.0001452,2]
[346511034,1735017070641,-500.0,0.0001452,2]
[346511035,1735017070650,-404.17979251,0.0001452,2]
[346511036,1735017070659,-764.84,0.0001452,2]
[346511037,1735017070669,-500.0,0.0001452,2]
[346511038,1735017070678,-500.0,0.0001452,2]
[346511039,1735017070687,-500.0,0.0001452,2]
[346511040,1735017070697,-500.0,0.0001452,2]
[346511041,1735017070705,-500.0,0.0001452,2]
[346511042,1735017070715,-500.0,0.0001452,2]
[346511043,1735017070725,-1499.77,0.0001452,2]
[346511044,1735017070735,-500.0,0.0001452,2]
[346511045,1735017070745,-1598.59,0.0001452,2]
[346511046,1735017070757,-500.0,0.0001452,2]
[346511047,1735017070767,-500.0,0.0001452,2]
[346511048,1735017070776,-500.0,0.0001452,2]
[346511049,1735017070786,-1242.36,0.0001452,2]
[346511050,1735017070796,-500.0,0.0001452,2]
[346511051,1735017070806,-500.0,0.0001452,2]
[346511052,1735017070816,-559.25,0.0001452,2]
[346511053,1735017070826,-500.0,0.0001452,2]
[346511054,1735017070836,-500.0,0.0001452,2]
[346511055,1735017070846,-881.82,0.0001452,2]
[346511056,1735017070855,-500.0,0.0001452,2]
[346511057,1735017070865,-736.96,0.0001452,2]
[346511058,1735017070875,-500.0,0.0001452,2]
[346511059,1735017070885,-500.0,0.0001452,2]
[346511060,1735017070894,-500.0,0.0001452,2]
[346511061,1735017070905,-500.0,0.0001452,2]
[346511062,1735017070914,-632.45,0.0001452,2]
[346511063,1735017070924,-500.0,0.0001452,2]
[346511064,1735017070933,-500.0,0.0001452,2]
[346511065,1735017070943,-500.0,0.0001452,2]
[346511066,1735017070952,-500.0,0.0001452,2]
[346511067,1735017070961,-500.0,0.0001452,2]
[346511068,1735017070971,-500.0,0.0001452,2]
[346511069,1735017070981,-500.0,0.0001452,2]
[346511070,1735017070991,-500.0,0.0001452,2]
[346511071,1735017071001,-584.48,0.0001452,2]
[346511072,1735017071010,-500.0,0.0001452,2]
[346511073,1735017071020,-734.02,0.0001452,2]
[346511074,1735017071030,-1243.83,0.0001452,2]
[346511075,1735017071039,-500.0,0.0001452,2]
[346511076,1735017071049,-607.12,0.0001452,2]
[346511077,1735017071059,-698.02,0.0001452,2]
[346511078,1735017071069,-500.0,0.0001452,2]
[346511079,1735017071079,-500.0,0.0001452,2]
[346511080,1735017071088,-500.0,0.0001452,2]
[346511081,1735017071098,-500.0,0.0001452,2]
[346511082,1735017071108,-500.0,0.0001452,2]
[346511083,1735017071118,-500.0,0.0001452,2]
[346511084,1735017071128,-500.0,0.0001452,2]
[346511085,1735017071137,-1517.51,0.0001452,2]
[346511086,1735017071147,-500.0,0.0001452,2]
[346511087,1735017071157,-2185.96,0.0001452,2]
[346511088,1735017071166,-1895.65,0.0001452,2]
[346511089,1735017071176,-500.0,0.0001452,2]
[346511090,1735017071186,-500.0,0.0001452,2]
[346511091,1735017071196,-500.0,0.0001452,2]
[346511092,1735017071205,-500.0,0.0001452,2]
[346511093,1735017071215,-500.0,0.0001452,2]
[346511094,1735017071225,-524.51,0.0001452,2]
[346511095,1735017071234,-500.0,0.0001452,2]
[346511096,1735017071244,-1146.95,0.0001452,2]
[346511097,1735017071253,-1341.35,0.0001452,2]
[346511098,1735017071263,-500.0,0.0001452,2]
[346511099,1735017071273,-847.15,0.0001452,2]
[346511100,1735017071282,-804.88,0.0001452,2]
[346511101,1735017071292,-500.0,0.0001452,2]
[346511102,1735017071302,-845.49,0.0001452,2]
[346511103,1735017071312,-500.0,0.0001452,2]
[346511104,1735017071321,-500.0,0.0001452,2]
[346511105,1735017071331,-512.15,0.0001452,2]
[346511106,1735017071340,-728.57,0.0001452,2]
[346511107,1735017071350,-500.0,0.0001452,2]
[346511108,1735017071360,-500.0,0.0001452,2]
[346511109,1735017071369,-953.52,0.0001452,2]
[346511110,1735017071378,-500.0,0.0001452,2]
[346511111,1735017071388,-1722.6,0.0001452,2]
[346511112,1735017071397,-500.0,0.0001452,2]
[346511113,1735017071407,-1169.18,0.0001452,2]
[346511114,1735017071416,-967.22,0.0001452,2]
[346511115,1735017071426,-500.0,0.0001452,2]
[346511116,1735017071435,-500.0,0.0001452,2]
[346511117,1735017071445,-970.63,0.0001452,2]
[346511118,1735017071454,-682.34,0.0001452,2]
[346511119,1735017071463,-500.0,0.0001452,2]
[346511120,1735017071472,-1186.53,0.0001452,2]
[346511121,1735017071482,-2751.61,0.0001452,2]
[346511122,1735017071493,-516.04,0.0001452,2]
[346511123,1735017071502,-500.0,0.0001452,2]
[346511124,1735017071511,-8307.43,0.0001452,2]
[346511125,1735017071521,-951.65,0.0001452,2]
[346511126,1735017071531,-838.55,0.0001452,2]
[346511127,1735017071540,-1312.48,0.0001452,2]
[346511128,1735017071554,-500.0,0.0001452,2]
[346511129,1735017071563,-500.0,0.0001452,2]
[346511130,1735017071574,-693.38,0.0001452,2]
[346511131,1735017071584,-500.0,0.0001452,2]
[346511132,1735017071595,-500.0,0.0001452,2]
[346511133,1735017071605,-895.42,0.0001452,2]
[346511134,1735017071673,-2714.59,0.0001452,2]
[346511135,1735017071683,-226.93603685,0.0001452,2]
[346511136,1735017071693,-1034.79,0.0001452,2]
[346511137,1735017071702,-1494.15,0.0001452,2]
[346511138,1735017071712,-970.92,0.0001452,2]
[346511139,1735017071722,-530.08,0.0001452,2]
[346511140,1735017071734,-2028.23,0.0001452,2]
[346511141,1735017071744,-8065.04,0.0001452,2]
[346511142,1735017071753,-14022.51,0.0001452,2]
[346511143,1735017071763,-500.0,0.0001452,2]
[346511144,1735017071772,-500.0,0.0001452,2]
[346511145,1735017071782,-500.0,0.0001452,2]
[346511146,1735017071791,-417.753861,0.0001452,2]
[346511147,1735017071800,-1858.88,0.0001452,2]
[346511148,1735017071810,-638.49,0.0001452,2]
[346511149,1735017071819,-1961.86,0.0001452,2]
[346511150,1735017071828,-500.0,0.0001452,2]
[346511151,1735017071838,-500.0,0.0001452,2]
[346511152,1735017071847,-500.0,0.0001452,2]
[346511153,1735017071857,-470.967598,0.0001452,2]
[346511154,1735017071866,-1516.28,0.0001452,2]
[346511155,1735017071876,-500.0,0.0001452,2]
[346511156,1735017071885,-500.0,0.0001452,2]
[346511157,1735017071894,-500.0,0.0001452,2]
[346511158,1735017071904,-2763.5,0.0001452,2]
[346511159,1735017071914,-500.0,0.0001452,2]
[346511160,1735017071923,-595.96,0.0001452,2]
[346511161,1735017071933,-991.86,0.0001452,2]
[346511162,1735017071942,-1589.93,0.0001452,2]
[346511163,1735017071952,-2026.52,0.0001452,2]
[346511164,1735017071961,-500.0,0.0001452,2]
[346511165,1735017071970,-841.8,0.0001452,2]
[346511166,1735017071981,-500.0,0.0001452,2]
[346511167,1735017071990,-1673.95,0.0001452,2]
[346511168,1735017071999,-704.95,0.0001452,2]
[346511169,1735017072009,-881.88,0.0001452,2]
[346511170,1735017072018,-947.94,0.0001452,2]
[346511171,1735017072027,-500.0,0.0001452,2]
[346511172,1735017072036,-1132.27,0.0001452,2]
[346511173,1735017072046,-1217.14,0.0001452,2]
[346511174,1735017072055,-541.15,0.0001452,2]
[346511175,1735017072064,-527.89,0.0001452,2]
[346511176,1735017072074,-500.0,0.0001452,2]
[346511177,1735017072083,-500.0,0.0001452,2]
[346511178,1735017072092,-1554.58,0.0001452,2]
[346511179,1735017072101,-1554.93,0.0001452,2]
[346511180,1735017072111,-783.81,0.0001452,2]
[346511181,1735017072121,-8937.01,0.0001452,2]
[346511182,1735017072130,-1043.93,0.0001452,2]
[346511183,1735017072139,-1595.12,0.0001452,2]
[346511184,1735017072148,-820.47,0.0001452,2]
[346511185,1735017072157,-570.88,0.0001452,2]
[346511186,1735017072166,-500.0,0.0001452,2]
[346511187,1735017072175,-3160.1,0.0001452,2]
[346511188,1735017072184,-2812.48,0.0001452,2]
[346511189,1735017072193,-1278.73,0.0001452,2]
[346511190,1735017072202,-500.0,0.0001452,2]
[346511191,1735017072212,-500.0,0.0001452,2]
[346511192,1735017072222,-2713.57,0.0001452,2]
[346511193,1735017072231,-500.0,0.0001452,2]
[346511194,1735017072240,-708.16,0.0001452,2]
[346511195,1735017072250,-2055.84,0.0001452,2]
[346511196,1735017072260,-500.0,0.0001452,2]
[346511197,1735017072270,-626.11006984,0.0001452,2]
[346511198,1735017072279,-1461.32,0.0001452,2]
[346511199,1735017072288,-1831.86,0.0001452,2]
[346511200,1735017072298,-500.0,0.0001452,2]
[346511201,1735017072307,-5286.14,0.0001452,2]
[346511202,1735017072316,-2687.24,0.0001452,2]
[346511203,1735017072326,-929.6,0.0001452,2]
[346511204,1735017072335,-1334.92,0.0001452,2]
[346511205,1735017072343,-599.85,0.0001452,2]
[346511206,1735017072352,-6644.58,0.0001452,2]
[346511207,1735017072361,-500.0,0.0001452,2]
[346511208,1735017072370,-2084.05,0.0001452,2]
[346511209,1735017072379,-1574.04,0.0001452,2]
[346511210,1735017072389,-500.0,0.0001452,2]
[346511211,1735017072397,-521.4,0.0001452,2]
[346511212,1735017072407,-500.0,0.0001452,2]
[346511213,1735017072417,-1759.16,0.0001452,2]
[346511214,1735017072426,-5396.91,0.0001452,2]
[346511215,1735017072435,-500.0,0.0001452,2]
[346511216,1735017072445,-500.0,0.0001452,2]
[346511217,1735017072454,-5068.92,0.0001452,2]
[346511218,1735017072464,-2140.51,0.0001452,2]
[346511219,1735017072473,-500.0,0.0001452,2]
[346511220,1735017072484,-1218.27,0.0001452,2]
[346511221,1735017072494,-1094.07,0.0001452,2]
[346511222,1735017072503,-10243.1,0.0001452,2]
[346511223,1735017072513,-721.28,0.0001452,2]
[346511224,1735017072522,-500.0,0.0001452,2]
[346511225,1735017072532,-5625.96,0.0001452,2]
[346511226,1735017072541,-1216.52,0.0001452,2]
[346511227,1735017072552,-790.49,0.0001452,2]
[346511228,1735017072562,-500.0,0.0001452,2]
[346511229,1735017072571,-500.0,0.0001452,2]
[346511230,1735017072580,-2281.06,0.0001452,2]
[346511231,1735017072590,-653.69,0.0001452,2]
[346511232,1735017072600,-506.69,0.0001452,2]
[346511233,1735017072609,-500.0,0.0001452,2]
[346511234,1735017072619,-500.0,0.0001452,2]
[346511235,1735017072628,-500.0,0.0001452,2]
[346511236,1735017072637,-1025.3,0.0001452,2]
[346511237,1735017072646,-500.0,0.0001452,2]
[346511238,1735017072655,-3534.91,0.0001452,2]
[346511239,1735017072665,-500.0,0.0001452,2]
[346511240,1735017072675,-1884.7,0.0001452,2]
[346511241,1735017072685,-1009.93,0.0001452,2]
[346511242,1735017072695,-747.18,0.0001452,2]
[346511243,1735017072704,-1148.68,0.0001452,2]
[346511244,1735017072714,-500.0,0.0001452,2]
[346511245,1735017072723,-1487.41,0.0001452,2]
[346511246,1735017072737,-1157.43,0.0001452,2]
[346511247,1735017072747,-500.0,0.0001452,2]
[346511248,1735017072757,-574.67,0.0001452,2]
[346511249,1735017072767,-520.9,0.0001452,2]
[346511250,1735017072777,-500.0,0.0001452,2]
[346511251,1735017072786,-1366.93,0.0001452,2]
[346511252,1735017072796,-1321.6,0.0001452,2]
[346511253,1735017072805,-500.0,0.0001452,2]
[346511254,1735017072814,-3473.97,0.0001452,2]
[346511255,1735017072823,-2009.91,0.0001452,2]
[346511256,1735017072833,-500.0,0.0001452,2]
[346511257,1735017072842,-1834.74,0.0001452,2]
[346511258,1735017072851,-12237.72,0.0001452,2]
[346511259,1735017072862,-1429.03,0.0001452,2]
[346511260,1735017072871,-500.0,0.0001452,2]
[346511261,1735017072880,-926.41,0.0001452,2]
[346511262,1735017072890,-497.88176941,0.0001452,2]
[346511263,1735017072899,-3213.22,0.0001452,2]
[346511264,1735017072909,-669.32,0.0001452,2]
[346511265,1735017072919,-1100.0,0.000147,5]
[346511266,1735017072928,-180.9617382,0.00014784,2]
[346511267,1735017072938,-500.0,0.00014794,2]
[346511268,1735017072947,-500.0,0.00014794,2]
[346511269,1735017072957,-500.0,0.00014794,2]
[346511270,1735017072967,-500.0,0.00014794,2]
[346511271,1735017072978,-557.785434,0.00014794,2]
[346511272,1735017072988,-500.0,0.00014794,2]
[346511273,1735017072998,-664.615719,0.00014794,2]
[346511274,1735017073008,-500.0,0.00014794,2]
[346511275,1735017073018,-500.0,0.00014794,2]
[346511276,1735017073027,-642.62954479,0.00014794,2]
[346511277,1735017073037,-500.0,0.00014794,2]
[346511278,1735017073047,-500.0,0.00014794,2]
[346511279,1735017073057,-500.0,0.00014794,2]
[346511280,1735017073066,-500.0,0.00014794,2]
[346511281,1735017073077,-173.24753089,0.00014794,2]
[346511282,1735017073086,-500.0,0.00014794,2]
[346511283,1735017073095,-500.0,0.00014794,2]
[346511284,1735017073105,-500.0,0.00014794,2]
[346511285,1735017073114,-500.0,0.00014794,2]
[346511286,1735017073124,-500.0,0.00014794,2]
[346511287,1735017073134,-500.0,0.00014794,2]
[346511288,1735017073143,-500.0,0.00014794,2]
[346511289,1735017073153,-500.0,0.00014794,2]
[346511290,1735017073162,-656.66,0.00014794,2]
[346511291,1735017073172,-500.0,0.00014794,2]
[346511292,1735017073182,-488.96298784,0.00014794,2]
[346511293,1735017073192,-547.42,0.00014794,2]
[346511294,1735017073201,-577.56887114,0.00014794,2]
[346511295,1735017073211,-500.0,0.00014794,2]
[346511296,1735017073220,-500.0,0.00014794,2]
[346511297,1735017073230,-500.0,0.00014794,2]
[346511298,1735017073239,-500.0,0.00014794,2]
[346511299,1735017073249,-500.0,0.00014794,2]
[346511300,1735017073259,-500.0,0.00014794,2]
[346511301,1735017073268,-500.0,0.00014794,2]
[346511302,1735017073277,-500.0,0.00014794,2]
[346511303,1735017073286,-500.0,0.00014794,2]
[346511304,1735017073295,-728.94,0.00014794,2]
[346511305,1735017073305,-559.81,0.00014794,2]
[346511306,1735017073315,-500.0,0.00014794,2]
[346511307,1735017073324,-500.0,0.00014794,2]
[346511308,1735017073333,-500.0,0.00014794,2]
[346511309,1735017073344,-500.0,0.00014794,2]
[346511310,1735017073353,-500.0,0.00014794,2]
[346511311,1735017073362,-500.0,0.00014794,2]
[346511312,1735017073371,-556.14,0.00014794,2]
[346511313,1735017073380,-500.0,0.00014794,2]
[346511314,1735017073389,-500.0,0.00014794,2]
[346511315,1735017073398,-500.0,0.00014794,2]
[346511316,1735017073407,-922.02,0.00014794,2]
[346511317,1735017073416,-500.0,0.00014794,2]
[346511318,1735017073425,-660.38,0.00014794,2]
[346511319,1735017073435,-500.0,0.00014794,2]
[346511320,1735017073444,-503.9555095,0.00014794,2]
[346511321,1735017073453,-500.0,0.00014794,2]
[346511322,1735017073463,-504.55126818,0.00014794,2]
[346511323,1735017073472,-719.55,0.00014794,2]
[346511324,1735017073481,-500.0,0.00014794,2]
[346511325,1735017073491,-500.0,0.00014794,2]
[346511326,1735017073500,-500.0,0.00014794,2]
[346511327,1735017073510,-500.0,0.00014794,2]
[346511328,1735017073519,-847.72,0.00014794,2]
[346511329,1735017073528,-500.0,0.00014794,2]
[346511330,1735017073538,-803.4,0.00014794,2]
[346511331,1735017073547,-500.0,0.00014794,2]
[346511332,1735017073561,-500.0,0.00014794,2]
[346511333,1735017073570,-500.0,0.00014794,2]
[346511334,1735017073580,-500.0,0.00014794,2]
[346511335,1735017073589,-500.0,0.00014794,2]
[346511336,1735017073598,-500.0,0.00014794,2]
[346511337,1735017073607,-500.0,0.00014794,2]
[346511338,1735017073617,-500.0,0.00014794,2]
[346511339,1735017073627,-500.0,0.00014794,2]
[346511340,1735017073637,-500.0,0.00014794,2]
[346511341,1735017073646,-509.74546081,0.00014794,2]
[346511342,1735017073655,-500.0,0.00014794,2]
[346511343,1735017073664,-500.0,0.00014794,2]
[346511344,1735017073673,-500.0,0.00014794,2]
[346511345,1735017073682,-500.0,0.00014794,2]
[346511346,1735017073691,-500.0,0.00014794,2]
[346511347,1735017073701,-500.0,0.00014794,2]
[346511348,1735017073710,-500.0,0.00014794,2]
[346511349,1735017073719,-500.0,0.00014794,2]
[346511350,1735017073730,-500.0,0.00014794,2]
[346511351,1735017073739,-500.0,0.00014794,2]
[346511352,1735017073748,-503.67851469,0.00014794,2]
[346511353,1735017073757,-500.0,0.00014794,2]
[346511354,1735017073767,-639.75,0.00014794,2]
[346511355,1735017073775,-500.0,0.00014794,2]
[346511356,1735017073785,-500.0,0.00014794,2]
[346511357,1735017073794,-500.0,0.00014794,2]
[346511358,1735017073803,-500.0,0.00014794,2]
[346511359,1735017073812,-500.0,0.00014794,2]
[346511360,1735017073821,-2089.39,0.00014794,2]
[346511361,1735017073830,-739.91,0.00014794,2]
[346511362,1735017073840,-500.0,0.00014794,2]
[346511363,1735017073849,-500.0,0.00014794,2]
[346511364,1735017073858,-500.0,0.00014794,2]
[346511365,1735017073867,-500.0,0.00014794,2]
[346511366,1735017073876,-500.0,0.00014794,2]
[346511367,1735017073885,-500.0,0.00014794,2]
[346511368,1735017073894,-500.0,0.00014794,2]
[346511369,1735017073904,-500.0,0.00014794,2]
[346511370,1735017073914,-500.0,0.00014794,2]
[346511371,1735017073922,-500.0,0.00014794,2]
[346511372,1735017073932,-500.0,0.00014794,2]
[346511373,1735017073941,-605.17,0.00014794,2]
[346511374,1735017073950,-815.06,0.00014794,2]
[346511375,1735017073959,-500.0,0.00014794,2]
[346511376,1735017073968,-500.0,0.00014794,2]
[346511377,1735017073977,-404.59,0.00014794,2]
[346511378,1735017073986,-500.0,0.00014794,2]
[346511379,1735017073995,-500.0,0.00014794,2]
[346511380,1735017074004,-500.0,0.00014794,2]
[346511381,1735017074013,-699.59,0.00014794,2]
[346511382,1735017074023,-500.0,0.00014794,2]
[346511383,1735017074032,-500.0,0.00014794,2]
[346511384,1735017074042,-500.0,0.00014794,2]
[346511385,1735017074051,-500.0,0.00014794,2]
[346511386,1735017074060,-500.0,0.00014794,2]
[346511387,1735017074070,-1038.23,0.00014794,2]
[346511388,1735017074079,-500.0,0.00014794,2]
[346511389,1735017074089,-500.0,0.00014794,2]
[346511390,1735017074098,-500.0,0.00014794,2]
[346511391,1735017074108,-500.0,0.00014794,2]
[346511392,1735017074118,-928.44,0.00014794,2]
[346511393,1735017074127,-500.0,0.00014794,2]
[346511394,1735017074137,-527.05,0.00014794,2]
[346511395,1735017074147,-500.0,0.00014794,2]
[346511396,1735017074156,-1245.64,0.00014794,2]
[346511397,1735017074166,-500.0,0.00014794,2]
[346511398,1735017074175,-500.0,0.00014794,2]
[346511399,1735017074184,-500.0,0.00014794,2]
[346511400,1735017074194,-500.0,0.00014794,2]
[346511401,1735017074203,-628.43,0.00014794,2]
[346511402,1735017074212,-500.0,0.00014794,2]
[346511403,1735017074221,-500.0,0.00014794,2]
[346511404,1735017074232,-500.0,0.00014794,2]
[346511405,1735017074241,-500.0,0.00014794,2]
[346511406,1735017074250,-500.0,0.00014794,2]
[346511407,1735017074259,-516.41,0.00014794,2]
[346511408,1735017074268,-500.0,0.00014794,2]
[346511409,1735017074278,-500.0,0.00014794,2]
[346511410,1735017074287,-500.0,0.00014794,2]
[346511411,1735017074296,-500.0,0.00014794,2]
[346511412,1735017074305,-500.0,0.00014794,2]
[346511413,1735017074314,-500.0,0.00014794,2]
[346511414,1735017074324,-859.05,0.00014794,2]
[346511415,1735017074342,-500.0,0.00014794,2]
[346511416,1735017074352,-500.0,0.00014794,2]
[346511417,1735017074361,-500.0,0.00014794,2]
[346511418,1735017074370,-500.0,0.00014794,2]
[346511419,1735017074379,-500.0,0.00014794,2]
[346511420,1735017074389,-500.0,0.00014794,2]
[346511421,1735017074398,-500.0,0.00014794,2]
[346511422,1735017074408,-500.0,0.00014794,2]
[346511423,1735017074418,-500.0,0.00014794,2]
[346511424,1735017074427,-500.0,0.00014794,2]
[346511425,1735017074437,-500.0,0.00014794,2]
[346511426,1735017074446,-500.0,0.00014794,2]
[346511427,1735017074456,-500.0,0.00014794,2]
[346511428,1735017074466,-500.0,0.00014794,2]
[346511429,1735017074475,-500.0,0.00014794,2]
[346511430,1735017074488,-500.0,0.00014794,2]
[346511431,1735017074498,-500.0,0.00014794,2]
[346511432,1735017074507,-500.0,0.00014794,2]
[346511433,1735017074517,-500.0,0.00014794,2]
[346511434,1735017074526,-500.0,0.00014794,2]
[346511435,1735017074535,-500.0,0.00014794,2]
[346511436,1735017074545,-500.0,0.00014794,2]
[346511437,1735017074559,-500.0,0.00014794,2]
[346511438,1735017074568,-500.0,0.00014794,2]
[346511439,1735017074577,-386.11339542,0.00014794,2]
[346511440,1735017074586,-500.0,0.00014794,2]
[346511441,1735017074596,-500.0,0.00014794,2]
[346511442,1735017074605,-589.52,0.00014794,2]
[346511443,1735017074615,-500.0,0.00014794,2]
[346511444,1735017074625,-500.0,0.00014794,2]
[346511445,1735017074635,-500.0,0.00014794,2]
[346511446,1735017074647,-500.0,0.00014794,2]
[346511447,1735017074656,-500.0,0.00014794,2]
[346511448,1735017074666,-500.0,0.00014794,2]
[346511449,1735017074675,-500.0,0.00014794,2]
[346511450,1735017074685,-500.0,0.00014794,2]
[346511451,1735017074696,-524.33,0.00014794,2]
[346511452,1735017074706,-500.0,0.00014794,2]
[346511453,1735017074716,-500.0,0.00014794,2]
[346511454,1735017074726,-500.0,0.00014794,2]
[346511455,1735017074738,-500.0,0.00014794,2]
[346511456,1735017074748,-500.0,0.00014794,2]
[346511457,1735017074757,-500.0,0.00014794,2]
[346511458,1735017074767,-500.0,0.00014794,2]
[346511459,1735017074776,-500.0,0.00014794,2]
[346511460,1735017074786,-500.0,0.00014794,2]
[346511461,1735017074796,-500.0,0.00014794,2]
[346511462,1735017074806,-500.0,0.00014794,2]
[346511463,1735017074816,-500.0,0.00014794,2]
[346511464,1735017074826,-500.0,0.00014794,2]
[346511465,1735017074835,-500.0,0.00014794,2]